bitfinex/quotes_ETHUSD_20260307
["timestamp","ask_amount","ask_price","bid_price","bid_amount"]
[1772899656681,0.001,1978.3,1978.1,0.46659061]
[1772899657986,0.001,1978.2,1978.1,0.46659061]
[1772899659592,0.001,1978.2,1978.1,1.73042964]
[1772899660492,0.001,1978.4,1978.2,0.46659061]
[1772899661090,0.001,1978.4,1978.1,0.46659061]
[1772899661293,0.47497458,1978.4,1978.1,0.46659061]
[1772899668174,0.47497458,1978.4,1978.1,1.73039663]
[1772899668681,0.001,1978.4,1978.2,0.46659061]
[1772899669872,0.001,1978.3,1978.2,0.46659061]
[1772899670994,0.001,1978.3,1978.2,1.73036575]
[1772899671198,1.73723885,1979.0,1978.3,0.46659061]
[1772899671388,0.47397458,1978.9,1978.3,0.46659061]
[1772899676798,0.47397458,1978.7,1978.3,0.46659061]
[1772899677100,0.47397458,1978.7,1978.3,1.73025095]
[1772899677402,0.47397458,1978.7,1978.4,0.46659061]
[1772899677610,0.47397458,1978.7,1978.3,1.26366034]
[1772899677797,0.47397458,1978.7,1977.9,1.73160414]
[1772899677798,0.47397458,1978.6,1977.9,1.73160414]
[1772899678105,0.47397458,1978.6,1977.9,0.46769061]
[1772899678339,0.47397458,1978.6,1977.9,0.0011]
[1772899678882,0.47397458,1978.4,1977.9,0.0011]
[1772899681605,0.48933551,1978.2,1977.9,0.0011]
[1772899682013,0.48933551,1978.2,1978.0,0.0011]
[1772899685525,0.47197892,1978.4,1978.0,0.48693417]
[1772899685706,0.47197892,1978.4,1978.0,0.0011]
[1772899686430,1.26371126,1978.3,1978.0,0.0011]
[1772899686617,0.47197892,1978.2,1978.0,0.0011]
[1772899690319,0.47197892,1978.1,1978.0,0.0011]
[1772899693126,0.47197892,1978.3,1978.0,0.0011]
[1772899693336,0.47197892,1978.3,1978.0,0.48693417]
[1772899693900,0.47197892,1978.3,1978.1,0.0011]
[1772899694099,0.47297892,1978.3,1978.1,0.0011]
[1772899695324,1.26377514,1978.2,1978.1,0.0011]
[1772899695508,0.47197892,1978.2,1978.1,0.0011]
[1772899702029,1.26475685,1978.3,1978.1,0.0011]
[1772899702531,0.001,1978.3,1978.1,0.0011]
[1772899702738,1.26464136,1978.5,1978.3,0.48583417]
[1772899702739,0.001,1978.5,1978.3,0.48583417]
[1772899704810,0.001,1978.5,1978.3,1.74949817]
[1772899706913,0.001,1978.4,1978.3,1.74949817]
[1772899707954,1.26344315,1978.8,1978.4,0.48583417]
[1772899707955,0.47197892,1978.8,1978.4,0.48583417]
[1772899708823,0.47197892,1978.7,1978.3,1.74949817]
[1772899709134,0.47197892,1978.7,1978.4,0.48583417]
[1772899711156,1.73524319,1979.0,1978.5,0.48583417]
[1772899711355,1.26326427,1979.0,1978.5,0.48583417]
[1772899711947,1.73620761,1979.1,1978.5,0.48583417]
[1772899712326,0.47297892,1979.1,1978.5,0.48583417]
[1772899712561,1.73618381,1979.1,1978.5,0.48583417]
[1772899712773,1.73618381,1979.1,1978.4,0.47217185]
[1772899712774,0.45861876,1979.0,1978.4,0.47217185]
[1772899714257,0.45861876,1979.0,1978.5,1.73575537]
[1772899714550,1.72188821,1979.0,1978.6,0.47217185]
[1772899717448,0.45861876,1979.0,1978.6,1.73567735]
[1772899717651,0.001,1979.1,1978.7,0.47217185]
[1772899717973,0.001,1979.1,1978.8,1.26339195]
[1772899718249,0.001,1979.1,1978.9,0.47217185]
[1772899719023,0.001,1979.0,1978.9,0.47217185]
[1772899720354,0.001,1979.0,1978.9,1.73549996]
[1772899720864,0.001,1979.2,1979.0,0.47217185]
[1772899723756,0.001,1979.2,1979.1,1.73537229]
[1772899724150,0.37686429,1979.4,1979.2,0.47217185]
[1772899724151,1e-08,1979.4,1979.2,0.47217185]
[1772899727059,1e-08,1979.4,1979.2,1.73529198]
[1772899728652,1e-08,1979.4,1979.3,0.47217185]
[1772899729561,1e-08,1979.4,1979.3,1.73524465]
[1772899730055,1e-08,1979.4,1979.3,1.2630728]
[1772899730260,1e-08,1979.4,1979.2,1.73527897]
[1772899730964,1e-08,1979.4,1979.3,0.47217185]
[1772899731941,0.45861876,1979.3,1978.7,1.2634558]
[1772899732263,0.45861876,1979.3,1978.9,0.47217185]
[1772899734844,0.45861876,1979.2,1978.8,3.0495216]
[1772899735042,0.45861876,1979.2,1978.9,0.47217185]
[1772899735740,0.45861876,1979.2,1979.0,1.315]
[1772899736243,0.45861877,1979.4,1979.0,1.78717185]
[1772899736576,0.45861876,1979.3,1979.0,1.78717185]
[1772899738659,0.45861876,1979.3,1979.0,3.05041505]
[1772899739047,0.45861876,1979.3,1979.0,2.5782432]
[1772899739249,0.45861876,1979.3,1978.9,1.2632765]
[1772899739451,0.45861876,1979.3,1979.0,1.316]
[1772899740745,0.45861876,1979.2,1978.9,0.47217185]
[1772899742679,0.45861876,1979.2,1978.9,1.73547603]
[1772899743076,0.45861876,1979.2,1979.0,0.0011]
[1772899743980,0.49474374,1979.3,1979.0,0.46374928]
[1772899744166,0.001,1979.3,1979.0,0.46374928]
[1772899746577,0.001,1979.3,1979.1,1.72584972]
[1772899747679,0.001,1979.3,1979.1,0.46264928]
[1772899749780,0.49474374,1979.3,1979.0,1.3201]
[1772899750179,0.49474374,1979.3,1979.0,0.0011]
[1772899750377,0.49474374,1979.3,1979.0,1.3201]
[1772899754085,0.49374374,1979.2,1979.0,1.3201]
[1772899754589,0.49374374,1979.0,1978.9,0.0011]
[1772899754758,0.49374374,1979.0,1978.7,0.0011]
[1772899756095,0.49374374,1979.0,1978.9,0.0011]
[1772899756992,1.75700801,1979.0,1978.9,0.0011]
[1772899760388,0.49374374,1978.9,1978.7,0.0011]
[1772899762367,1.26338514,1978.9,1978.7,0.0011]
[1772899762569,0.001,1979.2,1978.7,0.46374928]
[1772899762771,0.49374374,1979.1,1978.7,0.46374928]
[1772899763083,0.49474374,1979.2,1978.7,0.46374928]
[1772899765575,0.49474374,1979.2,1978.9,0.46264928]
[1772899766387,0.001,1979.2,1978.9,0.46264928]
[1772899766689,0.49374374,1979.1,1978.7,1.77974928]
[1772899767387,0.49374374,1979.1,1978.8,0.0011]
[1772899767690,0.49474374,1979.1,1978.8,0.0011]
[1772899770594,1.75796139,1979.1,1978.8,0.0011]
[1772899770767,0.49374374,1979.0,1978.8,0.0011]
[1772899772665,0.45431131,1978.9,1978.8,0.0011]
[1772899773484,0.001,1979.1,1978.8,0.49958905]
[1772899774567,0.001,1979.1,1978.9,0.49848905]
[1772899775923,0.001,1979.1,1979.0,1.26326427]
[1772899776098,0.001,1979.1,1979.0,1.76175332]
[1772899779001,0.001,1979.1,1979.0,0.49848905]
[1772899779194,0.001,1979.1,1978.9,1.26438117]
[1772899779399,0.001,1979.0,1978.9,1.76287022]
[1772899783901,0.001,1979.1,1978.9,1.26438117]
[1772899784205,0.001,1979.3,1979.1,0.49848905]
[1772899787805,0.001,1979.3,1979.1,1.76165073]
[1772899788196,0.001,1979.3,1979.2,1.82148905]
[1772899790097,0.001,1979.3,1979.2,3.08462567]
[1772899791199,0.45531131,1979.3,1979.0,3.08575252]
[1772899791507,0.45531131,1979.3,1979.0,2.58726347]
[1772899791880,0.45531131,1979.3,1979.2,0.0011]
[1772899793084,1.71838411,1979.3,1979.2,0.0011]
[1772899798221,0.45531131,1979.3,1979.2,0.0011]
[1772899798596,0.001,1979.3,1979.2,0.0011]
[1772899801185,0.001,1979.3,1979.2,0.45367625]
[1772899801809,0.001,1979.3,1979.2,0.0011]
[1772899802309,0.47261776,1979.3,1979.2,0.0011]
[1772899802709,0.001,1979.3,1979.2,0.46848773]
[1772899803111,0.001,1979.5,1979.3,0.46738773]
[1772899805290,0.001,1979.5,1979.3,1.73040779]
[1772899811346,0.001,1979.5,1979.4,0.46738773]
[1772899812537,0.001,1979.5,1979.4,1.73039672]
[1772899812741,0.001,1979.8,1979.5,0.46738773]
[1772899813039,0.47949408,1979.8,1979.5,0.46738773]
[1772899813342,0.47949408,1979.8,1979.4,1.73039672]
[1772899814241,0.47849408,1979.7,1979.4,1.73039672]
[1772899814409,0.47849408,1979.7,1979.4,1.73039647]
[1772899814608,0.47849408,1979.7,1979.3,1.26301636]
[1772899814836,0.47849408,1979.7,1979.2,1.73158036]
[1772899815438,0.47849408,1979.7,1979.3,0.46738773]
[1772899816139,0.47849408,1979.7,1979.3,0.46848773]
[1772899816546,0.47949408,1979.7,1979.3,0.46848773]
[1772899819053,0.47949408,1979.7,1979.4,1.26300899]
[1772899824432,0.44334068,1979.6,1979.3,0.0011]
[1772899825006,0.44334068,1979.4,1979.3,0.0011]
[1772899827140,0.44334068,1979.4,1979.0,0.0011]
[1772899827141,0.44224068,1979.3,1979.0,0.0011]
[1772899827813,0.44224068,1979.3,1979.0,0.46848773]
[1772899828822,0.44224068,1979.3,1979.1,0.0011]
[1772899831116,1.26308094,1979.3,1979.1,0.0011]
[1772899831326,1.70529785,1979.4,1979.1,0.0011]
[1772899832150,0.44224068,1979.3,1979.1,0.0011]
[1772899832841,1.70529785,1979.4,1979.1,0.46086032]
[1772899836946,1.70529785,1979.4,1979.1,0.0011]
[1772899836947,0.44224068,1979.3,1979.1,0.0011]
[1772899837121,0.44224068,1979.3,1979.0,0.0011]
[1772899840252,1.70531348,1979.3,1979.2,0.0011]
[1772899840750,1.70631348,1979.3,1979.2,0.0011]
[1772899841853,0.001,1979.3,1979.2,0.0011]
[1772899842052,0.001,1979.3,1979.2,0.46086032]
[1772899842452,0.001,1979.3,1979.2,0.0011]
[1772899845560,1.2640728,1979.3,1979.2,0.0011]
[1772899849832,1.70631348,1979.3,1979.2,0.0011]
[1772899862364,0.44224068,1979.2,1978.9,0.0011]
[1772899862563,0.44224068,1979.2,1978.9,0.0022]
[1772899863356,0.44224068,1979.2,1978.9,0.0011]
[1772899863552,0.44224068,1979.0,1978.9,0.0011]
[1772899864869,0.43224068,1979.0,1978.9,0.0011]
[1772899865754,1.69550495,1979.0,1978.9,0.0011]
[1772899865941,1.69550495,1979.0,1978.7,0.0011]
[1772899866145,1.69550495,1979.0,1978.7,0.0022]
[1772899868390,1.69550495,1979.0,1978.7,0.0011]
[1772899869673,1.69550495,1979.0,1978.7,0.47393838]
[1772899871078,1.69550495,1979.0,1978.8,0.0011]
[1772899871972,1.26326427,1979.0,1978.8,0.0011]
[1772899873077,1.26326427,1979.0,1978.7,0.0011]
[1772899874750,1.76326426,1979.0,1978.7,0.0011]
[1772899877382,1.76326426,1979.0,1978.8,0.0011]
[1772899882489,0.001,1979.1,1978.8,0.0011]
[1772899882783,1.26422415,1979.1,1978.8,0.0011]
[1772899884679,0.001,1979.1,1978.8,0.0011]
[1772899884887,0.50099999,1979.1,1978.8,0.0011]
[1772899888668,1.76426167,1979.1,1978.8,0.0011]
[1772899889294,0.001,1979.0,1978.8,0.0011]
[1772899900805,0.50099999,1979.0,1978.9,0.0011]
[1772899901118,0.50099999,1979.0,1978.8,0.0011]
[1772899907407,0.50099999,1979.0,1978.8,0.0022]
[1772899907408,0.001,1979.0,1978.8,0.0022]
[1772899907600,0.001,1979.0,1978.9,0.0011]
[1772899909183,0.001,1979.0,1978.8,0.0011]
[1772899909184,0.001,1979.0,1978.8,0.0022]
[1772899909689,0.50044999,1979.0,1978.8,0.0011]
[1772899912415,0.50044999,1979.0,1978.9,0.0011]
[1772899913811,1.76371426,1979.0,1978.9,0.0011]
[1772899914410,1.76371426,1979.0,1978.5,1.11918352]
[1772899915511,1.76371622,1979.0,1978.5,1.11918352]
[1772899916053,1.76426622,1979.0,1978.5,1.11918352]
[1772899916814,0.49999999,1978.9,1978.3,0.0011]
[1772899917020,0.49999999,1978.9,1978.4,1.317]
[1772899917316,0.49999999,1978.9,1978.3,0.0011]
[1772899917317,0.49999999,1978.8,1978.3,0.0011]
[1772899917485,0.49999999,1978.6,1978.3,0.0011]
[1772899918198,1.2634558,1978.7,1978.3,0.0011]
[1772899918721,0.50099999,1979.0,1978.3,0.0011]
[1772899918888,1.76429694,1979.0,1978.3,0.0011]
[1772899919307,1.76429694,1979.0,1978.4,0.01529334]
[1772899919708,0.49235332,1978.9,1978.6,0.01529334]
[1772899920518,0.49335332,1979.0,1978.6,0.01529334]
[1772899922705,1.75661961,1979.0,1978.6,0.01529334]
[1772899922904,0.001,1979.0,1978.7,0.01529334]
[1772899923120,0.49433982,1979.0,1978.7,0.01529334]
[1772899924424,0.49433982,1979.0,1978.7,0.01639334]
[1772899924624,0.001,1978.9,1978.7,0.01639334]
[1772899932843,0.001,1978.9,1978.7,0.0011]
[1772899933025,0.49433982,1978.9,1978.7,0.0011]
[1772899940768,1.26436293,1978.9,1978.5,1.3171]
[1772899940933,0.49999999,1978.8,1978.5,1.3171]
[1772899941637,1.76436292,1978.9,1978.5,2.58067976]
[1772899948265,1.76436292,1978.9,1978.6,0.0011]
[1772899948431,0.001,1978.8,1978.6,0.0011]
[1772899949455,0.50099999,1978.8,1978.6,0.0011]
[1772899959864,0.50099999,1978.8,1978.7,0.0011]
[1772899962377,0.001,1978.8,1978.7,0.0011]
[1772899969758,0.001,1979.1,1978.7,0.0011]
[1772899969961,0.50099999,1979.3,1978.7,0.0011]
[1772899970182,0.001,1979.3,1978.7,0.0011]
[1772899972678,0.001,1979.3,1978.8,0.0011]
[1772899973055,0.001,1979.2,1978.8,0.0011]
[1772899973262,0.001,1979.2,1978.9,0.01768868]
[1772899973499,0.49215565,1979.2,1978.8,0.0011]
[1772899974580,0.49060565,1979.0,1978.5,0.0011]
[1772899976801,0.49060565,1978.8,1978.5,0.0011]
[1772899977976,5.05312102,1979.0,1978.5,0.01988868]
[1772899977977,0.49060565,1979.0,1978.5,0.01988868]
[1772899978283,0.001,1979.2,1978.6,0.01878868]
[1772899978284,0.49060565,1979.1,1978.6,0.01878868]
[1772899979690,1.75386992,1979.0,1978.6,0.01878868]
[1772899980188,1.75386992,1979.0,1978.6,1.28230752]
[1772899980483,0.49060565,1979.0,1978.6,1.26351884]
[1772899980690,0.49060565,1979.0,1978.7,0.01878868]
[1772899981766,1.75388264,1979.0,1978.7,0.01878868]
[1772899982697,0.49060565,1979.0,1978.7,0.01878868]
[1772899983199,1.75387372,1979.0,1978.7,0.01878868]
[1772899983978,0.49060565,1979.0,1978.7,0.01878868]
[1772899984577,0.001,1979.2,1978.8,0.0011]
[1772899984779,0.49160565,1979.1,1978.8,0.01988868]
[1772899985371,0.001,1979.1,1978.8,0.01988868]
[1772899986082,0.001,1979.1,1979.0,0.01878868]
[1772899987193,0.001,1979.1,1979.0,1.34878868]
[1772899987395,0.49160565,1979.1,1979.0,1.33]
[1772899988479,0.49160565,1979.1,1978.8,1.2832803]
[1772899988683,0.49160565,1979.1,1978.8,2.59049162]
[1772899989182,0.49160565,1979.1,1978.8,1.3271]
[1772899989382,0.49160565,1979.1,1978.8,2.59049029]
[1772899992310,0.49160565,1979.1,1978.8,1.3271]
[1772899996494,0.49160565,1979.0,1978.8,1.3271]
[1772899997884,0.001,1979.0,1978.9,0.01878868]
[1772900000096,0.001,1979.0,1978.8,2.60927156]
[1772900002825,0.001,1979.0,1978.8,1.34588868]
[1772900005614,0.49160565,1979.0,1978.8,1.3271]
[1772900005914,0.49160565,1979.0,1978.8,1.3341]
[1772900006913,0.49160565,1979.0,1978.8,2.59748708]
[1772900007116,0.001,1979.0,1978.8,2.61627576]
[1772900007520,0.001,1979.0,1978.9,0.01878868]
[1772900009015,0.001,1979.0,1978.8,1.3341]
[1772900009417,0.001,1979.0,1978.8,2.59748656]
[1772900011018,0.001,1979.0,1978.8,2.61627524]
[1772900013918,0.001,1979.0,1978.8,1.35288868]
[1772900014220,0.49160565,1979.0,1978.8,1.3341]
[1772900014725,0.001,1979.0,1978.9,0.01878868]
[1772900015017,0.001,1979.0,1978.8,2.59748602]
[1772900015522,0.001,1979.0,1978.8,2.6162747]
[1772900019620,0.001,1978.9,1978.8,2.6162747]
[1772900019918,0.001,1978.9,1978.8,2.61628063]
[1772900024001,0.001,1979.1,1978.9,0.01878868]
[1772900027235,0.001,1979.1,1978.9,1.28210425]
[1772900027440,0.001,1979.1,1978.9,1.26331557]
[1772900027734,0.001,1979.1,1978.8,2.61623951]
[1772900029535,0.001,1979.1,1978.8,2.59745083]
[1772900029725,0.001,1979.1,1978.9,0.01878868]
[1772900030836,0.001,1979.0,1978.9,0.01878868]
[1772900034508,0.001,1979.0,1978.9,1.28211679]
[1772900037055,0.001,1979.0,1978.9,0.01878868]
[1772900037259,0.001,1979.0,1978.8,2.59745307]
[1772900041064,0.001,1979.0,1978.8,2.61624175]
[1772900042663,0.001,1979.0,1978.9,0.0011]
[1772900042862,0.49160565,1979.0,1978.9,0.0011]
[1772900044568,0.001,1979.1,1978.9,0.0011]
[1772900044569,0.001,1979.2,1979.0,0.01878868]
[1772900044750,0.49160565,1979.6,1979.1,1.37378868]
[1772900044950,0.49160565,1979.6,1978.9,0.01988868]
[1772900045259,0.49160565,1979.6,1979.0,1.355]
[1772900047771,1.26294518,1979.5,1978.9,0.0011]
[1772900047972,0.49060565,1979.4,1979.0,1.356]
[1772900052481,1.2630728,1979.3,1979.0,1.356]
[1772900052682,0.49060565,1979.2,1979.0,1.356]
[1772900054353,0.49060565,1979.2,1979.0,1.3571]
[1772900056465,0.48503982,1979.1,1979.0,1.3571]
[1772900063693,0.48503982,1979.1,1979.0,0.0011]
[1772900076935,0.001,1979.2,1979.0,0.0011]
[1772900077531,0.001,1979.2,1979.1,0.0011]
[1772900083848,0.48711741,1979.2,1979.1,0.0011]
[1772900084223,0.48711741,1979.2,1978.9,0.0011]
[1772900084424,0.48556741,1979.1,1978.8,1.3661]
[1772900089249,0.48556741,1979.1,1978.9,0.0011]
[1772900091047,1.74970403,1979.2,1978.9,0.02996517]
[1772900093452,1.74970811,1979.2,1978.9,0.02996517]
[1772900100868,0.001,1979.1,1978.9,0.02996517]
[1772900101577,0.001,1979.3,1979.0,0.46418576]
[1772900102245,0.001,1979.3,1979.1,0.47041473]
[1772900102572,0.49615171,1979.3,1979.0,0.47041473]
[1772900102773,0.49615171,1979.3,1979.1,1.366]
[1772900102989,0.49615171,1979.3,1978.9,1.7347987]
[1772900103162,0.49615171,1979.3,1978.9,0.0011]
[1772900104780,0.49515171,1979.1,1978.9,0.0011]
[1772900106604,1.75926427,1979.3,1978.9,0.47151473]
[1772900107604,0.001,1979.3,1978.9,0.47151473]
[1772900108477,1.75923237,1979.3,1978.9,0.47151473]
[1772900110605,0.49515171,1979.2,1978.9,0.47151473]
[1772900112904,0.49515171,1979.2,1979.0,0.0011]
[1772900113290,0.49615171,1979.2,1979.0,0.0011]
[1772900114405,1.75929098,1979.2,1979.0,0.0011]
[1772900114606,0.49515171,1979.1,1979.0,0.0011]
[1772900119103,1.75835215,1979.1,1979.0,0.0011]
[1772900120017,4.77719385,1979.1,1979.0,0.0011]
[1772900121104,3.51399341,1979.1,1979.0,0.0011]
[1772900124746,3.0188417,1979.1,1979.0,0.0011]
[1772900125115,3.0198417,1979.1,1979.0,0.0011]
[1772900131670,1.86625171,1978.8,1978.7,0.0011]
[1772900131878,0.49515171,1978.7,1978.6,0.0011]
[1772900132171,0.49515171,1978.7,1978.4,0.0011]
[1772900132172,1.75449797,1978.5,1978.4,0.0011]
[1772900132463,4.77333967,1978.5,1978.4,0.0011]
[1772900135676,4.77333967,1978.5,1978.3,0.0011]
[1772900135677,0.49091445,1978.4,1978.3,0.0011]
[1772900136254,3.49766259,1978.4,1978.3,0.0011]
[1772900136466,0.49091445,1978.3,1978.0,0.0011]
[1772900136661,0.49091445,1978.2,1978.0,0.0011]
[1772900136860,0.49091445,1978.1,1978.0,0.0011]
[1772900137266,1.75475348,1978.1,1978.0,0.0011]
[1772900143496,0.49091445,1978.0,1977.7,2.12121373]
[1772900143676,0.49091445,1977.9,1977.2,0.46403018]
[1772900143890,0.49091445,1977.8,1977.2,0.46403018]
[1772900145101,0.49091445,1977.8,1977.3,0.0022]
[1772900145302,0.49091445,1977.6,1977.3,0.0022]
[1772900146902,0.49091445,1977.6,1977.2,0.46403018]
[1772900147101,0.49091445,1977.6,1977.3,0.0022]
[1772900147305,0.49091445,1977.6,1977.1,0.46623018]
[1772900147599,0.49091445,1977.4,1977.1,0.0022]
[1772900147900,1.2642225,1977.5,1977.1,0.46623018]
[1772900148102,1.2642225,1977.5,1976.9,1.26457444]
[1772900148103,0.49091445,1977.9,1977.3,0.46403018]
[1772900148401,0.49091445,1978.0,1977.3,0.46403018]
[1772900148571,0.49091445,1978.0,1977.5,0.46403018]
[1772900149302,0.49091445,1978.2,1977.7,0.46403018]
[1772900149494,1.75469438,1978.2,1977.8,0.46403018]
[1772900151092,1.75469438,1978.2,1977.8,1.72806013]
[1772900151296,0.49091445,1978.2,1977.8,1.72806013]
[1772900151706,0.49091445,1978.2,1977.9,0.0022]
[1772900152120,0.49091445,1978.2,1977.9,0.46403018]
[1772900153932,1.75469324,1978.2,1977.9,0.46403018]
[1772900154131,0.49091445,1978.2,1977.9,0.46403018]
[1772900155423,0.49091445,1978.2,1977.8,0.46403018]
[1772900155618,0.49091445,1978.1,1977.9,0.0022]
[1772900159157,3.49192545,1978.1,1977.9,0.0022]
[1772900160439,3.001011,1978.1,1978.0,0.0022]
[1772900160768,0.44333375,1978.4,1978.0,0.46403018]
[1772900161062,0.44333375,1978.4,1977.8,1.26401472]
[1772900161063,0.44333375,1978.4,1978.1,0.47104311]
[1772900161271,0.44333375,1978.4,1978.1,0.46884311]
[1772900162937,0.44333375,1978.4,1977.7,1.72788991]
[1772900162938,0.46406491,1978.3,1977.7,1.72788991]
[1772900163338,0.46406491,1978.3,1977.7,0.46380282]
[1772900163867,0.46406491,1978.3,1977.7,1.72788975]
[1772900164623,0.46406491,1978.1,1977.7,1.72788975]
[1772900166851,0.46406491,1978.0,1977.6,1.356]
[1772900167174,0.46406491,1978.0,1977.6,2.62015023]
[1772900167576,0.46406491,1978.0,1977.6,1.356]
[1772900167750,0.46406491,1978.0,1977.2,5.05873768]
[1772900167751,0.46406491,1977.9,1977.3,1.72812078]
[1772900167951,0.46406491,1977.9,1977.3,3.08512078]
[1772900168253,0.46406491,1977.9,1977.2,1.72926798]
[1772900169581,0.46406491,1977.8,1977.3,0.46380282]
[1772900169887,2.41445058,1977.9,1977.5,0.46380282]
[1772900169888,1.72803369,1977.9,1977.5,0.46380282]
[1772900170201,0.46406491,1977.8,1977.5,0.46380282]
[1772900171898,0.46406491,1977.8,1977.5,1.72799646]
[1772900172488,0.46406491,1977.8,1977.5,0.46380282]
[1772900172687,3.00970286,1977.7,1977.5,0.46380282]
[1772900172889,0.46406491,1977.8,1977.5,0.46380282]
[1772900173091,3.00969779,1977.7,1977.5,0.46380282]
[1772900173300,0.46406491,1977.8,1977.5,0.46380282]
[1772900173604,3.00973115,1977.7,1977.6,0.0011]
[1772900174592,3.47379606,1977.7,1977.6,0.0011]
[1772900177392,3.00973115,1977.7,1977.6,0.0011]
[1772900180434,3.00973115,1977.7,1977.6,0.46490282]
[1772900180593,0.46406491,1978.1,1977.6,0.30046879]
[1772900180918,3.28550353,1978.2,1977.6,0.30046879]
[1772900181429,0.87105295,1978.2,1977.6,0.30046879]
[1772900181905,0.40698804,1978.2,1977.6,0.30046879]
[1772900182415,0.40698804,1978.2,1977.8,0.29936879]
[1772900182621,0.40698804,1978.2,1977.9,1.66336879]
[1772900183683,0.87105295,1978.2,1977.9,1.66336879]
[1772900186924,0.001,1978.1,1977.9,2.92733549]
[1772900187615,0.001,1978.1,1978.0,0.29721362]
[1772900188610,0.001,1978.1,1978.0,1.56111655]
[1772900190123,0.001,1978.1,1978.0,0.29721362]
[1772900190439,0.001,1978.1,1978.0,1.56111655]
[1772900199544,0.001,1978.1,1978.0,0.29721362]
[1772900200647,0.001,1978.1,1978.0,1.56111655]
[1772900201148,0.4800258,1978.1,1977.9,1.368]
[1772900202742,1.74390941,1978.1,1977.9,1.368]
[1772900202951,0.4800258,1978.1,1977.9,1.368]
[1772900203928,0.4790258,1978.0,1977.8,1.3701]
[1772900204970,0.4790258,1978.0,1977.8,0.0011]
[1772900205163,0.4790258,1978.0,1977.6,5.05772769]
[1772900205164,0.4790258,1977.9,1977.6,0.0011]
[1772900207729,0.4790258,1977.7,1977.6,0.0011]
[1772900209282,0.4790258,1977.7,1977.3,0.0011]
[1772900209283,0.4790258,1977.7,1977.2,0.0011]
[1772900209557,0.4790258,1977.7,1976.0,13.66674571]
[1772900209558,0.4790258,1977.3,1976.4,2.62192064]
[1772900209760,0.4790258,1977.0,1976.4,2.62192064]
[1772900210056,0.4790258,1977.0,1976.4,2.92023426]
[1772900210781,0.4790258,1976.9,1976.4,2.92023426]
[1772900212358,0.4790258,1976.8,1976.4,2.9202328]
[1772900212734,0.4790258,1976.8,1976.4,2.62191918]
[1772900213640,0.4790258,1976.8,1976.4,1.26491918]
[1772900213837,0.4790258,1976.8,1976.4,2.62291918]
[1772900214038,0.4790258,1976.8,1976.4,2.9212328]
[1772900215465,0.4790258,1976.8,1976.4,2.62291918]
[1772900215665,0.4790258,1976.8,1976.4,1.5632328]
[1772900215851,0.4790258,1976.8,1976.5,1.361]
[1772900216766,0.4790258,1976.8,1976.5,2.62579909]
[1772900218071,1.74337617,1977.3,1976.6,0.29831362]
[1772900218275,0.4790258,1977.2,1976.5,2.62579909]
[1772900220381,0.4790258,1976.8,1976.3,0.47681148]
[1772900220591,0.4790258,1976.5,1975.9,0.29831362]
[1772900221505,0.4790258,1976.5,1975.7,0.29831362]
[1772900221645,0.4790258,1976.5,1975.7,1.356]
[1772900222049,0.4631441,1976.4,1975.7,1.356]
[1772900222251,0.45091834,1976.2,1975.7,1.341]
[1772900223415,0.45091834,1976.2,1975.6,2.60942948]
[1772900224108,0.45091834,1976.4,1975.7,0.29831362]
[1772900224276,0.45091834,1976.4,1975.9,0.29831362]
[1772900225607,0.45091834,1976.3,1975.9,0.29831362]
[1772900226880,0.45091834,1976.3,1975.9,1.56350272]
[1772900227612,0.45091834,1976.3,1975.3,5.06229516]
[1772900227613,0.45091834,1976.2,1975.3,0.31447741]
[1772900228105,0.45091834,1976.0,1975.2,0.31447741]
[1772900228304,0.89439208,1975.9,1975.2,0.31447741]
[1772900228482,0.45091834,1975.8,1975.0,2.61677983]
[1772900228681,0.45091834,1975.4,1974.7,1.42332799]
[1772900228902,0.45091834,1975.4,1975.0,0.31447741]
[1772900229782,0.45091834,1975.3,1974.8,1.349]
[1772900229981,0.45091834,1975.3,1974.7,1.42332284]
[1772900230319,0.45091834,1975.3,1974.7,2.76232284]
[1772900230686,0.45091834,1975.5,1974.8,0.31447741]
[1772900231105,0.45091834,1975.4,1974.9,1.26588688]
[1772900233917,0.45091834,1975.4,1975.0,0.31447741]
[1772900234915,0.45091834,1975.4,1974.9,1.26588688]
[1772900235111,0.45091834,1975.4,1974.9,1.58036429]
[1772900237624,0.45091834,1975.8,1975.0,0.31447741]
[1772900237989,0.45091834,1975.7,1975.2,0.31447741]
[1772900238215,0.45091834,1975.7,1975.3,1.359]
[1772900239433,0.45091834,1976.0,1975.4,0.31447741]
[1772900239737,4.614253,1976.1,1975.4,0.31447741]
[1772900240027,0.45091834,1975.8,1975.4,1.26552816]
[1772900241324,0.45091834,1975.8,1975.4,1.58000557]
[1772900241593,0.001,1976.2,1975.5,0.31447741]
[1772900241730,0.45091834,1976.6,1975.6,0.31447741]
[1772900241935,0.45091834,1976.6,1975.8,0.31447741]
[1772900242227,0.45091834,1976.4,1975.8,1.57974099]
[1772900242530,0.45091834,1976.4,1975.9,1.351]
[1772900242733,0.45091834,1976.4,1975.8,1.57974099]
[1772900242948,0.45091834,1976.4,1976.0,1.347]
[1772900243605,0.45091834,1976.4,1975.9,1.35]
[1772900244127,2.38686224,1976.1,1975.9,1.35]
[1772900244500,2.38686224,1976.1,1975.9,2.61524574]
[1772900244847,2.38686224,1976.1,1976.0,0.31447741]
[1772900246417,2.38686224,1976.1,1975.9,2.61524574]
[1772900246632,2.38686224,1976.1,1976.0,1.357]
[1772900247747,2.38686224,1976.1,1975.9,1.59588694]
[1772900248046,2.18686224,1976.1,1976.0,1.6906412]
[1772900248219,0.45091834,1976.4,1976.0,2.95577595]
[1772900248419,0.45091834,1976.4,1976.0,2.62513475]
[1772900249241,0.45091834,1976.6,1976.0,2.75577595]
[1772900249544,0.45091834,1976.6,1976.0,2.62513475]
[1772900249754,0.45091834,1976.6,1976.1,1.363]
[1772900250642,0.45091834,1976.5,1976.1,2.62806576]
[1772900251557,0.45091834,1976.5,1975.4,0.1306412]
[1772900251714,0.45091834,1976.5,1975.6,0.1306412]
[1772900252843,0.46648096,1976.4,1975.8,0.1306412]
[1772900255151,0.46648096,1976.2,1975.4,1.39620766]
[1772900255325,0.46648096,1976.2,1975.6,0.1306412]
[1772900255724,0.46648096,1976.2,1975.6,1.363]
[1772900256623,0.46648096,1976.2,1975.5,1.364]
[1772900256825,0.46648096,1976.2,1975.5,1.365]